{"text_format":"3","workbook":"xlsx","n_sheets":5,"sheets":["Инструкция","Информация об ОО","otchet","служ","Лист1"],"not_rendered":{"images":3,"defined_names":28},"read":"whole","date_system":"1900"}

{"sheet":"Инструкция","index":0,"n_rows":78,"n_cols":6,"rows_kept":78,"merged":[[0,0,0,1],[1,0,1,1],[3,0,3,1],[16,2,16,3]]}
["ВПР 2020"]
["Заявка на участие во Всероссийских проверочных работах.\nВесна 2020"]
["версия 1.0","       Инструкция по работе с формой "]
["Данная форма предназначена для сбора заявок ОО, участвующих в ВПР весной 2020 г.\nНиже представлена пошаговая инструкция по заполнению формы, формированию и отправке отчета."]
["1. Технические особенности работы с файлом формы-отчёта"]
["  1.1.  ","Данная форма предназначена для работы в MS Excel 2000-2016 или OpenOffice 3"]
["  1.2.","Во избежание проблем с загрузкой формы отчёта необходимо обрабатывать (открывать, редактировать, сохранять) с помощью только одного программного продукта для каждой формы. Например:"]
[null,"Допустимо открыть форму отчета в OpenOffice, заполнить, сохранить, снова открыть в OpenOffice, сформировать отчет"]
[null,"Недопустимо открыть форму отчета в OpenOffice, заполнить, сохранить, открыть в Microsoft Excel, сформировать отчет"]
["  1.3.","При необходимости внести изменения в данные, вносите их в ранее заполненную форму, либо заполняйте форму заново целиком. Не сдавайте частично заполненную форму! Последняя сданная версия отчета заменяет предыдущие, поэтому при сдаче частично заполненной формы ранее предоставленные данные могут быть утеряны."]
["  1.4.","Размещайте все материалы по работе с Федеральной информационной системой оценки качества образования (ФИС ОКО) в одном месте и храните все файлы не менее двух лет."]
["  1.5.","После загрузки с сайта и сохранения файла с формой-отчётом  рекомендуется переименовать файл, добавив к названию номер или логин Вашей школы. Например: 2020form770179.xls"]
["2. Общие рекомендации по заполнению формы-отчёта"]
[" 2.1.","Для удобства использования рекомендуется распечатать данную инструкцию."]
[" 2.2.","Заполняйте поля, выделенные цветом (см. справа). Поля выделенные голубым обязательны для заполнения, зеленым - в зависимости от контекста.",{"$nulls":3},"знач1"]
[" 2.3.","Для редактирования частично заполненного поля пользуйтесь клавишей F2 (Fn+F2).",{"$nulls":3},"знач2"]
[" 2.4.","В ряде ячеек данные можно выбирать из списка. У таких ячеек справа появляется стрелка выпадающего списка (как и у ячейки справа). Нажмите на стрелку и, воспользовавшись полосой прокрутки, выберите нужное вам значение.",{"$nulls":3},"знач3"]
[" 2.5.","В процессе работы над файлом не реже чем раз в 5-7 минут сохраняйте его, нажимая Ctrl+S."]
[" 2.6.","Внимание! Категорически запрещается удалять ячейки, строки, столбцы и двигать ячейки мышью.\nДля очистки ячейки при работе в Microsoft Excel пользуйтесь клавишей DEL, при работе в OpenOffice Calc - клавишей BACKSPACE или DEL. Если при нажатии BACKSPACE или DEL (в OpenOffice Calc) появляется диалоговое окно, нужно установить параметры удаления содержимого, убрав галки со всех указанных по умолчанию параметров, и выбрать только удаление текста и чисел.\nДля копирования информации внутри файла пользуйтесь Ctrl+C(копирование) и Ctrl+V(вставка)."]
[" 2.7.","Копируя данные из других источников, обязательно используйте режим специальной вставки:\nпри работе в Microsoft Excel правая кнопка мыши (или меню - правка) - специальная вставка - текст;\nпри работе в OpenOffice Calc правая кнопка мыши (или меню - правка)  - вставить как - текст без форматирования.\nВ противном случае возможно повреждение логической схемы формы и, как следствие, искажение передаваемых данных."]
[" 2.8.","При работе Вам будет видна только часть данных. Для перемещения используйте стрелки на клавиатуре и полосы прокрутки на экране."]
[" 2.9.","Не рекомендуем отключать защиту данного файла, так как работа формы может быть нарушена, что приведет к неправильной передаче данных."]
["Заполнение отдельных разделов"]
["3. Описание разделов (листов формы)"]
[null,"Настоящая форма-отчёт предназначена для сбора данных об участниках всероссийских проверочных работ."]
["3.1.","Раздел (лист) \"Инструкция\" содержит пошаговую инструкцию по формированию и передаче информации."]
["3.2.","Раздел \"Информация об ОО\" содержит общие сведения о реализуемых программах обучения и заявки на участие в ВПР."]
["3.3.","Раздел \"otchet\" формируется автоматически на основе остальных разделов и не требует отдельного заполнения. Он предназначен для формирования итогового csv-отчета."]
["4. Раздел \"Информация об ОО\""]
[" 4.1.","Перейдите в раздел \"информация об ОО\" (ярлычки внизу экрана). Впишите логин ОО в отведенное для него поле. "]
[" 4.2.","Укажите реализуемые в ОО программы обучения. Отметьте \"да\" напротив тех ступеней обучения, которые есть в ОО. Если данной ступени в ОО нет, оставьте поле пустым."]
["4.3.","Укажите, по каким предметам и в каких классах ОО планирует принять участие в ВПР."]
["4.4. ","Участие в ВПР в 4, 5, 6 и 7 классах является обязательным. В случае, если данные классы в ОО отсутствуют или в ОО в данный период планируются каникулы, необходнимо выбрать \"нет\" в графе \"Участие\", в графе \"причина отказа от участия\" необходимо выбрать из выпадающего списка причину: \"данный класс отсутствует\" или \"каникулы в соответствии с годовым календарным учебным графиком (ГКУГ)\""]
["4.5.","Всероссийская проверочная работа по иностранному языку (английский, немецкий, французский) в 7 и 11 классах включает в себя письменную и устную части. Обе части работы выполняются в компьютерной форме в специально оборудованной для этого аудитории. Для выполнения работы на сайте будет размещено специальное ПО (программное обеспечение).  "]
["4.6.","Для участия в ВПР по иностранным языкам в заявке следует указать, сколько дней необходимо для проведения проверочных работ в ОО. Количество дней ОО определяет самостоятельно в период, утвержденный графиком проведения ВПР. Для этого необходимо учесть количество обучающихся, которые будут принимать участие в работе, количество аудиторий, оборудованных станциями для записи ответов (рекомендуется использовать не более 4-х станций на одну аудиторию проведения, за исключением лингафонных кабинетов (+ одна резервная на каждую аудиторию проведения с 4-мя станциями)). \nНа основании заявленного количества дней для ОО будет предоставлено соответствующее количество вариантов проверочных работ по иностранным языкам (2 варианта проверочных работ на каждый день проведения). При проведении проверочных работ в течение нескольких дней необходимо будет использовать новые варианты проверочных работ каждый день."]
["Подготовка файла отчёта для загрузки на сайте ФИС ОКО"]
["5. Создание файла отчета при работе в MS Excel 2000-2016"]
["5.1.","Перейдите на лист \"otchet\". \nУбедитесь, что сообщение на листе подтверждает готовность к формированию отчета. \nНе уходите с этого листа до окончания работы."]
["5.2.","Сохраните заполненную форму, нажав комбинацию Ctrl+S. "]
["5.3.","Выберите в пункте меню \"Файл\" - \"Сохранить как...\".\nВ MS Excel 2013 после этого нажмите кнопку \"Обзор\"."]
["5.4.","Выберите папку для размещения csv-отчёта. Рекомендуем хранить все файлы проекта в одном месте."]
["5.5.","Выберите тип файла \"CSV (разделители запятые) *.csv\"  Будьте внимательны, нужен именно этот формат! (СSV для ms-dos и СSV для macintosh не подходят). См. рисунок: "]
[]
["5.6.","Строчкой выше дайте файлу имя otchet, добавив дату и т.д. по необходимости. Используйте только латинские буквы. \nНапример: 20200220otchet."]
["5.7.","Нажмите \"сохранить\"."]
["5.8.","Согласитесь сохранить в предложенном формате только текущий лист - нажмите \"ОК\" в появившемся окне."]
["5.9.","Согласитесь сохранить всю книгу в формате csv, нажав \"ДА\" в очередном окне."]
["5.10.","Закройте форму, отказавшись сохранять изменения (это сделано в п. 5.2.)"]
["6. Загрузка файла отчета при работе в OpenOffice 3"]
["6.1.","Перейдите на лист \"otchet\". \nУбедитесь, что сообщение на листе подтверждает готовность к формированию отчета. \nНе уходите с этого листа до окончания работы."]
["6.2.","Сохраните заполненную форму, нажав комбинацию Ctrl+S. "]
["6.3.","Выберите в пункте меню \"Файл\" - \"Сохранить как...\""]
["6.4.","Выберите папку для размещения csv-отчёта. Рекомендуем хранить все файлы проекта в одном месте."]
["6.5.","В открывшемся окне выберите тип файла \"Текст CSV\" (в некоторых версиях OpenOffice Calc предварительно нужно нажать на стрелку перед \"Тип файла\"). См. рисунок: "]
[]
["6.6.","Строчкой выше дайте файлу имя otchet, добавив дату и т.д. по необходимости. Используйте только латинские буквы. \nНапример: 20200220otchet179."]
["6.7.","Нажмите \"Сохранить\". На появившемся предупреждении выберите \"Использовать текущий формат\"."]
["6.8.","В открывшемся окне выберите кодировку \"Win-1251\" и разделитель поля \";\" (точку с запятой). Остальные поля оставьте так, как есть. См. рисунок: "]
[]
["6.9.","Нажмите \"Ок\". На появившемся предупреждении о сохранении только активного листа нажмите \"Ок\"."]
["    7. Отправка подготовленного отчета"]
["7.1.","Авторизуйтесь в личном кабинете на сайте ФИС ОКО https://lk-fisoko.obrnadzor.gov.ru/, используя логин и пароль. "]
["7.2.","Выберите публикацию, соответствующую сдаваемому отчёту. Нажмите на кнопку \"Загрузить файл\"."]
["7.3.","Укажите в открывшемся окне расположение файла с csv - отчетом."]
["7.4.","Когда файл сдан, в системе появляется сообщение \"Данные приняты, вы можете посмотреть их по ссылке \". В вэб-интерфейсе отобразятся принятые данные. Убедитесь, что они соответствуют данным, которые вносились в форму отчета."]
["7.5.","Отправленные отчёты и их актуальность Вы можете отслеживать в публикации, в которой сдавали отчет. Кликните по ссылке \"посмотреть\"."]
["8. Решение проблем"]
["8.1.","Большинство проблем связано с одной из следующих ошибок:\n1) неверно указан логин;\n2) заполнение отчета не закончено, т.е. на листе \"otchet\" осталось сообщение \"Работа с отчетом не закончена\";\n3) сохранен не тот лист (не \"otchet\", см. п. 5.1 или 6.1);\n4) неверный формат сдаваемого в систему файла (см. п. 5.5 или 6.5)."]
["8.2.","Если красные надписи не исчезают или отчет не принимается системой, перечитайте еще раз инструкцию. Если Вы не нашли ошибку в своих действиях, напишите письмо на адрес helpfisoko@fioco.ru "]
[null,"тема: ВПР Проблемы otchet.csv <логин>"]
[null,"в тексте письма укажите:"]
[null,"Логин образовательной организации"]
[null,"Ваши ФИО"]
[null,"Подробное описание проблемы. По возможности укажите пункт инструкции, выполнение которого вызвало затруднения."]
[null,"Обязательно прикрепите к письму проблемные файлы: заполненную форму, csv-отчёт. При необходимости прикрепите скриншот (снимок экрана)*. "]
["8.3.","Несоблюдение описанных выше требований существенно увеличит время обработки Вашего запроса."]
["8.4.","Если Вы не получили ответа в течение рабочего дня, отправьте повторное письмо."]
[null,"*Для создания скриншота нажмите Ctrl+PrtSc, после чего сохраните получившийся снимок, вставив в окно любого графического редактора или в MS Word документ (Shift+Ins)."]

{"sheet":"Информация об ОО","index":1,"n_rows":26,"n_cols":12,"rows_kept":26,"merged":[[0,2,0,4],[2,2,4,2],[5,2,8,2],[9,2,14,2],[15,2,22,2],[23,2,24,2]]}
[null,null,"Участие в ВПР"]
[null,null,"Класс","Предмет","Дата; день недели"]
[{"$f":"IF(#REF!=\"да\",IF(H3*I3*J3*K3*L3>0,1,0),1)","v":{"$error":"#REF!"}},null,"4 класс\n","Русский язык\n (часть 1 и часть 2)","30 марта-3 апреля, 6-10 апреля ",null,null,{"$f":"IF(#REF!=\"да\",1,IF(#REF!=\"нет\",2,0))","v":{"$error":"#REF!"}},{"$f":"IF(AND(#REF!=\"\",#REF!=\"да\",H3=2),0,1)*IF(AND(#REF!<>\"\",OR(#REF!=\"\",H3<>2)),0,1)","v":{"$error":"#REF!"}},{"$f":"IF(#REF!=\"да\",IF(AND(H3=1,#REF!=\"\"),1,IF(AND(H3=2,#REF!<>\"\"),1,0)),IF(AND(H3>0,#REF!=\"\"),1,0))","v":{"$error":"#REF!"}},{"$f":"IF(AND(H3=1,#REF!=\"\"),0,1)","v":{"$error":"#REF!"}},{"$f":"IF(AND(H3=1,K3=0),0,1)","v":{"$error":"#REF!"}}]
[{"$f":"IF(#REF!=\"да\",IF(H4*I4*J4*K4*L4>0,1,0),1)","v":{"$error":"#REF!"}},null,null,"Математика","13-17 апреля, 20-24 апреля",null,null,{"$f":"IF(#REF!=\"да\",1,IF(#REF!=\"нет\",2,0))","v":{"$error":"#REF!"}},{"$f":"IF(AND(#REF!=\"\",#REF!=\"да\",H4=2),0,1)*IF(AND(#REF!<>\"\",OR(#REF!=\"\",H4<>2)),0,1)","v":{"$error":"#REF!"}},{"$f":"IF(#REF!=\"да\",IF(AND(H4=1,#REF!=\"\"),1,IF(AND(H4=2,#REF!<>\"\"),1,0)),IF(AND(H4>0,#REF!=\"\"),1,0))","v":{"$error":"#REF!"}},{"$f":"IF(AND(H4=1,#REF!=\"\"),0,1)","v":{"$error":"#REF!"}},{"$error":"#REF!"}]
[{"$f":"IF(#REF!=\"да\",IF(H5*I5*J5*K5*L5>0,1,0),1)","v":{"$error":"#REF!"}},null,null,"Окружающий мир","13-17 апреля, 20-24 апреля",null,null,{"$f":"IF(#REF!=\"да\",1,IF(#REF!=\"нет\",2,0))","v":{"$error":"#REF!"}},{"$f":"IF(AND(#REF!=\"\",#REF!=\"да\",H5=2),0,1)*IF(AND(#REF!<>\"\",OR(#REF!=\"\",H5<>2)),0,1)","v":{"$error":"#REF!"}},{"$f":"IF(#REF!=\"да\",IF(AND(H5=1,#REF!=\"\"),1,IF(AND(H5=2,#REF!<>\"\"),1,0)),IF(AND(H5>0,#REF!=\"\"),1,0))","v":{"$error":"#REF!"}},{"$f":"IF(AND(H5=1,#REF!=\"\"),0,1)","v":{"$error":"#REF!"}},{"$error":"#REF!"}]
[{"$f":"IF(#REF!=\"да\",IF(H6*I6*J6*K6*L6>0,1,0),1)","v":{"$error":"#REF!"}},null,"5 класс\n","История","30 марта-3 апреля, 6-10 апреля ",null,null,{"$f":"IF(#REF!=\"да\",1,IF(#REF!=\"нет\",2,0))","v":{"$error":"#REF!"}},{"$f":"IF(AND(#REF!=\"\",#REF!=\"да\",H6=2),0,1)*IF(AND(#REF!<>\"\",OR(#REF!=\"\",H6<>2)),0,1)","v":{"$error":"#REF!"}},{"$f":"IF(#REF!=\"да\",IF(AND(H6=1,#REF!=\"\"),1,IF(AND(H6=2,#REF!<>\"\"),1,0)),IF(AND(H6>0,#REF!=\"\"),1,0))","v":{"$error":"#REF!"}},{"$f":"IF(AND(H6=1,#REF!=\"\"),0,1)","v":{"$error":"#REF!"}},{"$error":"#REF!"}]
[{"$f":"IF(#REF!=\"да\",IF(H7*I7*J7*K7*L7>0,1,0),1)","v":{"$error":"#REF!"}},null,null,"Биология","30 марта-3 апреля, 6-10 апреля ",null,null,{"$f":"IF(#REF!=\"да\",1,IF(#REF!=\"нет\",2,0))","v":{"$error":"#REF!"}},{"$f":"IF(AND(#REF!=\"\",#REF!=\"да\",H7=2),0,1)*IF(AND(#REF!<>\"\",OR(#REF!=\"\",H7<>2)),0,1)","v":{"$error":"#REF!"}},{"$f":"IF(#REF!=\"да\",IF(AND(H7=1,#REF!=\"\"),1,IF(AND(H7=2,#REF!<>\"\"),1,0)),IF(AND(H7>0,#REF!=\"\"),1,0))","v":{"$error":"#REF!"}},{"$f":"IF(AND(H7=1,#REF!=\"\"),0,1)","v":{"$error":"#REF!"}},{"$error":"#REF!"}]
[{"$f":"IF(#REF!=\"да\",IF(H8*I8*J8*K8*L8>0,1,0),1)","v":{"$error":"#REF!"}},null,null,"Математика","13-17 апреля, 20-24 апреля",null,null,{"$f":"IF(#REF!=\"да\",1,IF(#REF!=\"нет\",2,0))","v":{"$error":"#REF!"}},{"$f":"IF(AND(#REF!=\"\",#REF!=\"да\",H8=2),0,1)*IF(AND(#REF!<>\"\",OR(#REF!=\"\",H8<>2)),0,1)","v":{"$error":"#REF!"}},{"$f":"IF(#REF!=\"да\",IF(AND(H8=1,#REF!=\"\"),1,IF(AND(H8=2,#REF!<>\"\"),1,0)),IF(AND(H8>0,#REF!=\"\"),1,0))","v":{"$error":"#REF!"}},{"$f":"IF(AND(H8=1,#REF!=\"\"),0,1)","v":{"$error":"#REF!"}},{"$error":"#REF!"}]
[{"$f":"IF(#REF!=\"да\",IF(H9*I9*J9*K9*L9>0,1,0),1)","v":{"$error":"#REF!"}},null,null,"Русский язык","13-17 апреля, 20-24 апреля",null,null,{"$f":"IF(#REF!=\"да\",1,IF(#REF!=\"нет\",2,0))","v":{"$error":"#REF!"}},{"$f":"IF(AND(#REF!=\"\",#REF!=\"да\",H9=2),0,1)*IF(AND(#REF!<>\"\",OR(#REF!=\"\",H9<>2)),0,1)","v":{"$error":"#REF!"}},{"$f":"IF(#REF!=\"да\",IF(AND(H9=1,#REF!=\"\"),1,IF(AND(H9=2,#REF!<>\"\"),1,0)),IF(AND(H9>0,#REF!=\"\"),1,0))","v":{"$error":"#REF!"}},{"$f":"IF(AND(H9=1,#REF!=\"\"),0,1)","v":{"$error":"#REF!"}},{"$error":"#REF!"}]
[{"$f":"IF(#REF!=\"да\",IF(H10*I10*J10*K10*L10>0,1,0),1)","v":{"$error":"#REF!"}},null,"6 класс\n","География","30 марта-3 апреля, 6-10 апреля ",null,null,{"$f":"IF(#REF!=\"да\",1,IF(#REF!=\"нет\",2,0))","v":{"$error":"#REF!"}},{"$f":"IF(AND(#REF!=\"\",#REF!=\"да\",H10=2),0,1)*IF(AND(#REF!<>\"\",OR(#REF!=\"\",H10<>2)),0,1)","v":{"$error":"#REF!"}},{"$f":"IF(#REF!=\"да\",IF(AND(H10=1,#REF!=\"\"),1,IF(AND(H10=2,#REF!<>\"\"),1,0)),IF(AND(H10>0,#REF!=\"\"),1,0))","v":{"$error":"#REF!"}},{"$f":"IF(AND(H10=1,#REF!=\"\"),0,1)","v":{"$error":"#REF!"}},{"$error":"#REF!"}]
[{"$f":"IF(#REF!=\"да\",IF(H11*I11*J11*K11*L11>0,1,0),1)","v":{"$error":"#REF!"}},null,null,"История","30 марта-3 апреля, 6-10 апреля ",null,null,{"$f":"IF(#REF!=\"да\",1,IF(#REF!=\"нет\",2,0))","v":{"$error":"#REF!"}},{"$f":"IF(AND(#REF!=\"\",#REF!=\"да\",H11=2),0,1)*IF(AND(#REF!<>\"\",OR(#REF!=\"\",H11<>2)),0,1)","v":{"$error":"#REF!"}},{"$f":"IF(#REF!=\"да\",IF(AND(H11=1,#REF!=\"\"),1,IF(AND(H11=2,#REF!<>\"\"),1,0)),IF(AND(H11>0,#REF!=\"\"),1,0))","v":{"$error":"#REF!"}},{"$f":"IF(AND(H11=1,#REF!=\"\"),0,1)","v":{"$error":"#REF!"}},{"$error":"#REF!"}]
[{"$f":"IF(#REF!=\"да\",IF(H12*I12*J12*K12*L12>0,1,0),1)","v":{"$error":"#REF!"}},null,null,"Биология","30 марта-3 апреля, 6-10 апреля ",null,null,{"$f":"IF(#REF!=\"да\",1,IF(#REF!=\"нет\",2,0))","v":{"$error":"#REF!"}},{"$f":"IF(AND(#REF!=\"\",#REF!=\"да\",H12=2),0,1)*IF(AND(#REF!<>\"\",OR(#REF!=\"\",H12<>2)),0,1)","v":{"$error":"#REF!"}},{"$f":"IF(#REF!=\"да\",IF(AND(H12=1,#REF!=\"\"),1,IF(AND(H12=2,#REF!<>\"\"),1,0)),IF(AND(H12>0,#REF!=\"\"),1,0))","v":{"$error":"#REF!"}},{"$f":"IF(AND(H12=1,#REF!=\"\"),0,1)","v":{"$error":"#REF!"}},{"$error":"#REF!"}]
[{"$f":"IF(#REF!=\"да\",IF(H13*I13*J13*K13*L13>0,1,0),1)","v":{"$error":"#REF!"}},null,null,"Обществознание","13-17 апреля, 20-24 апреля",null,null,{"$f":"IF(#REF!=\"да\",1,IF(#REF!=\"нет\",2,0))","v":{"$error":"#REF!"}},{"$f":"IF(AND(#REF!=\"\",#REF!=\"да\",H13=2),0,1)*IF(AND(#REF!<>\"\",OR(#REF!=\"\",H13<>2)),0,1)","v":{"$error":"#REF!"}},{"$f":"IF(#REF!=\"да\",IF(AND(H13=1,#REF!=\"\"),1,IF(AND(H13=2,#REF!<>\"\"),1,0)),IF(AND(H13>0,#REF!=\"\"),1,0))","v":{"$error":"#REF!"}},{"$f":"IF(AND(H13=1,#REF!=\"\"),0,1)","v":{"$error":"#REF!"}},{"$error":"#REF!"}]
[{"$f":"IF(#REF!=\"да\",IF(H14*I14*J14*K14*L14>0,1,0),1)","v":{"$error":"#REF!"}},null,null,"Русский язык","13-17 апреля, 20-24 апреля",null,null,{"$f":"IF(#REF!=\"да\",1,IF(#REF!=\"нет\",2,0))","v":{"$error":"#REF!"}},{"$f":"IF(AND(#REF!=\"\",#REF!=\"да\",H14=2),0,1)*IF(AND(#REF!<>\"\",OR(#REF!=\"\",H14<>2)),0,1)","v":{"$error":"#REF!"}},{"$f":"IF(#REF!=\"да\",IF(AND(H14=1,#REF!=\"\"),1,IF(AND(H14=2,#REF!<>\"\"),1,0)),IF(AND(H14>0,#REF!=\"\"),1,0))","v":{"$error":"#REF!"}},{"$f":"IF(AND(H14=1,#REF!=\"\"),0,1)","v":{"$error":"#REF!"}},{"$error":"#REF!"}]
[{"$f":"IF(#REF!=\"да\",IF(H15*I15*J15*K15*L15>0,1,0),1)","v":{"$error":"#REF!"}},null,null,"Математика","13-17 апреля, 20-24 апреля","Дни",null,{"$f":"IF(#REF!=\"да\",1,IF(#REF!=\"нет\",2,0))","v":{"$error":"#REF!"}},{"$f":"IF(AND(#REF!=\"\",#REF!=\"да\",H15=2),0,1)*IF(AND(#REF!<>\"\",OR(#REF!=\"\",H15<>2)),0,1)","v":{"$error":"#REF!"}},{"$f":"IF(#REF!=\"да\",IF(AND(H15=1,#REF!=\"\"),1,IF(AND(H15=2,#REF!<>\"\"),1,0)),IF(AND(H15>0,#REF!=\"\"),1,0))","v":{"$error":"#REF!"}},{"$f":"IF(AND(H15=1,#REF!=\"\"),0,1)","v":{"$error":"#REF!"}},{"$error":"#REF!"}]
[{"$f":"IF(#REF!=\"да\",IF(H16*I16*J16*K16*L16>0,1,0),1)","v":{"$error":"#REF!"}},null,"7 класс ","Английский язык","30 марта-3 апреля, 6-10 апреля ",8,null,{"$f":"IF(#REF!=\"да\",1,IF(#REF!=\"нет\",2,0))","v":{"$error":"#REF!"}},{"$f":"IF(AND(#REF!=\"\",#REF!=\"да\",H16=2),0,1)*IF(AND(#REF!<>\"\",OR(#REF!=\"\",H16<>2)),0,1)*IF(AND(#REF!=\"да\",F16=0),0,1)*IF(AND(#REF!>0,F16>0),0,1)","v":{"$error":"#REF!"}},{"$f":"IF(#REF!=\"да\",IF(AND(H16=1,#REF!=\"\"),1,IF(AND(H16=2,#REF!<>\"\"),1,0)),IF(AND(H16>0,F16=\"\"),1,0))","v":{"$error":"#REF!"}},{"$f":"IF(AND(H16=1,#REF!=\"\"),0,1)","v":{"$error":"#REF!"}},{"$error":"#REF!"}]
[{"$f":"IF(#REF!=\"да\",IF(H17*I17*J17*K17*L17>0,1,0),1)","v":{"$error":"#REF!"}},null,null,"Обществознание","30 марта-3 апреля, 6-10 апреля ",null,null,{"$f":"IF(#REF!=\"да\",1,IF(#REF!=\"нет\",2,0))","v":{"$error":"#REF!"}},{"$f":"IF(AND(#REF!=\"\",#REF!=\"да\",H17=2),0,1)*IF(AND(#REF!<>\"\",OR(#REF!=\"\",H17<>2)),0,1)","v":{"$error":"#REF!"}},{"$f":"IF(#REF!=\"да\",IF(AND(H17=1,#REF!=\"\"),1,IF(AND(H17=2,#REF!<>\"\"),1,0)),IF(AND(H17>0,#REF!=\"\"),1,0))","v":{"$error":"#REF!"}},{"$f":"IF(AND(H17=1,#REF!=\"\"),0,1)","v":{"$error":"#REF!"}},{"$f":"IF(AND(H17=1,K17=0),0,1)","v":{"$error":"#REF!"}}]
[{"$f":"IF(#REF!=\"да\",IF(H18*I18*J18*K18*L18>0,1,0),1)","v":{"$error":"#REF!"}},null,null,"Русский язык","30 марта-3 апреля, 6-10 апреля ",null,null,{"$f":"IF(#REF!=\"да\",1,IF(#REF!=\"нет\",2,0))","v":{"$error":"#REF!"}},{"$f":"IF(AND(#REF!=\"\",#REF!=\"да\",H18=2),0,1)*IF(AND(#REF!<>\"\",OR(#REF!=\"\",H18<>2)),0,1)","v":{"$error":"#REF!"}},{"$f":"IF(#REF!=\"да\",IF(AND(H18=1,#REF!=\"\"),1,IF(AND(H18=2,#REF!<>\"\"),1,0)),IF(AND(H18>0,#REF!=\"\"),1,0))","v":{"$error":"#REF!"}},{"$f":"IF(AND(H18=1,#REF!=\"\"),0,1)","v":{"$error":"#REF!"}},{"$f":"IF(AND(H18=1,K18=0),0,1)","v":{"$error":"#REF!"}}]
[{"$f":"IF(#REF!=\"да\",IF(H19*I19*J19*K19*L19>0,1,0),1)","v":{"$error":"#REF!"}},null,null,"Биология","30 марта-3 апреля, 6-10 апреля ",null,null,{"$f":"IF(#REF!=\"да\",1,IF(#REF!=\"нет\",2,0))","v":{"$error":"#REF!"}},{"$f":"IF(AND(#REF!=\"\",#REF!=\"да\",H19=2),0,1)*IF(AND(#REF!<>\"\",OR(#REF!=\"\",H19<>2)),0,1)","v":{"$error":"#REF!"}},{"$f":"IF(#REF!=\"да\",IF(AND(H19=1,#REF!=\"\"),1,IF(AND(H19=2,#REF!<>\"\"),1,0)),IF(AND(H19>0,#REF!=\"\"),1,0))","v":{"$error":"#REF!"}},{"$f":"IF(AND(H19=1,#REF!=\"\"),0,1)","v":{"$error":"#REF!"}},{"$error":"#REF!"}]
[{"$f":"IF(#REF!=\"да\",IF(H20*I20*J20*K20*L20>0,1,0),1)","v":{"$error":"#REF!"}},null,null,"География","13-17 апреля, 20-24 апреля",null,null,{"$f":"IF(#REF!=\"да\",1,IF(#REF!=\"нет\",2,0))","v":{"$error":"#REF!"}},{"$f":"IF(AND(#REF!=\"\",#REF!=\"да\",H20=2),0,1)*IF(AND(#REF!<>\"\",OR(#REF!=\"\",H20<>2)),0,1)","v":{"$error":"#REF!"}},{"$f":"IF(#REF!=\"да\",IF(AND(H20=1,#REF!=\"\"),1,IF(AND(H20=2,#REF!<>\"\"),1,0)),IF(AND(H20>0,#REF!=\"\"),1,0))","v":{"$error":"#REF!"}},{"$f":"IF(AND(H20=1,#REF!=\"\"),0,1)","v":{"$error":"#REF!"}},{"$error":"#REF!"}]
[{"$f":"IF(#REF!=\"да\",IF(H21*I21*J21*K21*L21>0,1,0),1)","v":{"$error":"#REF!"}},null,null,"Математика","13-17 апреля, 20-24 апреля",null,null,{"$f":"IF(#REF!=\"да\",1,IF(#REF!=\"нет\",2,0))","v":{"$error":"#REF!"}},{"$f":"IF(AND(#REF!=\"\",#REF!=\"да\",H21=2),0,1)*IF(AND(#REF!<>\"\",OR(#REF!=\"\",H21<>2)),0,1)","v":{"$error":"#REF!"}},{"$f":"IF(#REF!=\"да\",IF(AND(H21=1,#REF!=\"\"),1,IF(AND(H21=2,#REF!<>\"\"),1,0)),IF(AND(H21>0,#REF!=\"\"),1,0))","v":{"$error":"#REF!"}},{"$f":"IF(AND(H21=1,#REF!=\"\"),0,1)","v":{"$error":"#REF!"}},{"$error":"#REF!"}]
[{"$f":"IF(#REF!=\"да\",IF(H22*I22*J22*K22*L22>0,1,0),1)","v":{"$error":"#REF!"}},null,null,"Физика","13-17 апреля, 20-24 апреля",null,null,{"$f":"IF(#REF!=\"да\",1,IF(#REF!=\"нет\",2,0))","v":{"$error":"#REF!"}},{"$f":"IF(AND(#REF!=\"\",#REF!=\"да\",H22=2),0,1)*IF(AND(#REF!<>\"\",OR(#REF!=\"\",H22<>2)),0,1)","v":{"$error":"#REF!"}},{"$f":"IF(#REF!=\"да\",IF(AND(H22=1,#REF!=\"\"),1,IF(AND(H22=2,#REF!<>\"\"),1,0)),IF(AND(H22>0,#REF!=\"\"),1,0))","v":{"$error":"#REF!"}},{"$f":"IF(AND(H22=1,#REF!=\"\"),0,1)","v":{"$error":"#REF!"}},{"$error":"#REF!"}]
[{"$f":"IF(#REF!=\"да\",IF(H23*I23*J23*K23*L23>0,1,0),1)","v":{"$error":"#REF!"}},null,null,"История","13-17 апреля, 20-24 апреля",null,null,{"$f":"IF(#REF!=\"да\",1,IF(#REF!=\"нет\",2,0))","v":{"$error":"#REF!"}},{"$f":"IF(AND(#REF!=\"\",#REF!=\"да\",H23=2),0,1)*IF(AND(#REF!<>\"\",OR(#REF!=\"\",H23<>2)),0,1)","v":{"$error":"#REF!"}},{"$f":"IF(#REF!=\"да\",IF(AND(H23=1,#REF!=\"\"),1,IF(AND(H23=2,#REF!<>\"\"),1,0)),IF(AND(H23>0,#REF!=\"\"),1,0))","v":{"$error":"#REF!"}},{"$f":"IF(AND(H23=1,#REF!=\"\"),0,1)","v":{"$error":"#REF!"}},{"$error":"#REF!"}]
[{"$f":"IF(#REF!=\"да\",IF(H24*K24*L24>0,1,0),1)","v":{"$error":"#REF!"}},null,"8 класс","Математика","14 апреля, вт",null,null,{"$f":"IF(#REF!=\"да\",1,IF(#REF!=\"нет\",2,0))","v":{"$error":"#REF!"}},null,null,{"$f":"IF(AND(H24=1,#REF!=\"\"),0,1)","v":{"$error":"#REF!"}},{"$f":"IF(AND(H24=1,K24=0),0,1)","v":{"$error":"#REF!"}}]
[{"$f":"IF(#REF!=\"да\",IF(H25*K25*L25>0,1,0),1)","v":{"$error":"#REF!"}},null,null,"Русский язык","16 апреля, чт",null,null,{"$f":"IF(#REF!=\"да\",1,IF(#REF!=\"нет\",2,0))","v":{"$error":"#REF!"}},null,null,{"$f":"IF(AND(H25=1,#REF!=\"\"),0,1)","v":{"$error":"#REF!"}},{"$f":"IF(AND(H25=1,K25=0),0,1)","v":{"$error":"#REF!"}}]
[{"$f":"IF(OR(#REF!=\"да\",#REF!=\"да\"),IF(H26*K26*L26>0,1,0),1)","v":{"$error":"#REF!"}},null,"11 класс","География","2-6 марта",null,null,{"$f":"IF(#REF!=\"да\",1,IF(#REF!=\"нет\",2,0))","v":{"$error":"#REF!"}},null,null,{"$f":"IF(AND(H26=1,#REF!&#REF!=\"\"),0,1)","v":{"$error":"#REF!"}},{"$f":"IF(AND(H26=1,K26=0),0,1)","v":{"$error":"#REF!"}}]

{"sheet":"otchet","index":2,"n_rows":5,"n_cols":255,"rows_kept":5}
[{"$f":"IF('Информация об ОО'!#REF!=1,20200222,111111)","v":{"$error":"#REF!"}},{"$f":"LOWER('Информация об ОО'!#REF!)","v":{"$error":"#REF!"}},{"$nulls":7},{"$f":"PRODUCT(J58:K157)","v":0},{"$f":"IF(COUNTIF(L1:CH1,\"#ССЫЛКА!\")+COUNTIF(B1:G1,\"#ССЫЛКА!\")>0,0,1)","v":0},{"$f":"CLEAN('Информация об ОО'!#REF!)","v":{"$error":"#REF!"}},{"$f":"CLEAN('Информация об ОО'!#REF!)","v":{"$error":"#REF!"}},{"$f":"CLEAN('Информация об ОО'!#REF!)","v":{"$error":"#REF!"}},{"$f":"CLEAN('Информация об ОО'!#REF!)","v":{"$error":"#REF!"}},null,{"$f":"'Информация об ОО'!#REF!","v":{"$error":"#REF!"}},{"$f":"INDIRECT(\"'Информация об ОО'!\"&R5)","v":0},{"$f":"INDIRECT(\"'Информация об ОО'!\"&S5)","v":0},{"$f":"INDIRECT(\"'Информация об ОО'!\"&T5)","v":0},0,0,0,0,0,0,0,0,0,0,0,0,0,0,0,0,0,0,0,0,0,0,0,0,0,0,0,0,0,0,0,0,0,0,0,0,0,{"$f":"CLEAN(OFFSET(INDIRECT(\"'Информация об ОО'!\"&R5),,1))","v":""},{"$f":"CLEAN(OFFSET(INDIRECT(\"'Информация об ОО'!\"&S5),,1))","v":""},"","","","","","","","","","","","","","","","","","","","","",{"$f":"CLEAN(OFFSET(INDIRECT(\"'Информация об ОО'!\"&CC5),,2))","v":""},{"$f":"CLEAN(OFFSET(INDIRECT(\"'Информация об ОО'!\"&CD5),,2))","v":""},"",{"$f":"CLEAN(OFFSET(INDIRECT(\"'Информация об ОО'!\"&CF5),,1))","v":""},{"$f":"CLEAN(OFFSET(INDIRECT(\"'Информация об ОО'!\"&CG5),,1))","v":""},"",{"$nulls":101},{"$f":"NOW()","v":"2020-02-03T11:35:10.250"},{"$nulls":66},"абвгдеёжзийклмнопрстуфхцчшщъыьэюяАБВГДЕЁЖЗИЙКЛМНОПРСТУФХЦЧШЩЪЫЬЭЮЯ"]
[null,{"$f":"IF('Информация об ОО'!#REF!=1,1,0)","v":{"$error":"#REF!"}},{"$nulls":15},{"$f":"OFFSET(INDIRECT(\"'Информация об ОО'!\"&R5),,-2)","v":"Обществознание"},{"$f":"OFFSET(INDIRECT(\"'Информация об ОО'!\"&S5),,-2)","v":"Русский язык"},{"$f":"OFFSET(INDIRECT(\"'Информация об ОО'!\"&T5),,-2)","v":"Биология"},"География","Математика","Физика","История","Математика","Русский язык","География",0,0,0,0,0,0,0,0,0,0,0,0,0,0,0,0,0,0,0,0,0,0,0,0,0,0,0,0,0,0,{"$f":"\"отказ \"&OFFSET(INDIRECT(\"'Информация об ОО'!\"&BF5),,-2)","v":"отказ Обществознание"},{"$f":"\"отказ \"&OFFSET(INDIRECT(\"'Информация об ОО'!\"&BG5),,-2)","v":"отказ Русский язык"},"отказ Биология","отказ География","отказ Математика","отказ Физика","отказ История","отказ Математика","отказ Русский язык","отказ География","отказ ","отказ ","отказ ","отказ ","отказ ","отказ ","отказ ","отказ ","отказ ","отказ ","отказ ","отказ ","отказ ",{"$f":"\"количество дней \"&OFFSET(INDIRECT(\"'Информация об ОО'!\"&CC5),,-2)","v":"количество дней "},{"$f":"\"количество дней \"&OFFSET(INDIRECT(\"'Информация об ОО'!\"&CD5),,-2)","v":"количество дней "},"количество дней ",{"$f":"\"количество дней \"&OFFSET(INDIRECT(\"'Информация об ОО'!\"&CF5),,-2)","v":"количество дней "},{"$f":"\"количество дней \"&OFFSET(INDIRECT(\"'Информация об ОО'!\"&CG5),,-2)","v":"количество дней "},"количество дней "]
[null,{"$f":"IF(B2>0,\"Отчет готов к сохранению и отправке. Выполните пункт 5 или 6 инструкции.\",\"Работа с отчетом не закончена.\")","v":{"$error":"#REF!"}},{"$nulls":15},{"$f":"OFFSET(INDIRECT(\"'Информация об ОО'!\"&R5),,-3)","v":0},{"$f":"OFFSET(INDIRECT(\"'Информация об ОО'!\"&S5),,-3)","v":0},0,0,0,0,0,"8 класс",0,"11 класс",0,0,0,0,0,0,0,0,0,0,0,0,0,0,0,0,0,0,0,0,0,0,0,0,0,0,0,0,0,0]
[]
[{"$nulls":17},"F17","F18","F19","F20","F21","F22","F23","F24","F25","F26","F27","F28","F29","F30","F31","F32","F33","F34","F35","F36","F37","F38","F39","F40","F41","F42","F43","F44","F45","F46","F47","F48","F49","F50","F51","F52","F53","F54","F55","F56","F17","F18","F19","F20","F21","F22","F23","F24","F25","F26","F27","F28","F29","F30","F31","F32","F33","F34","F35","F36","F37","F38","F39","F30","F31","F32","F49","F50","F51"]

{"sheet":"служ","index":3,"n_rows":41,"n_cols":17,"rows_kept":41,"hidden":true}
[null,null,"parall",null,"yn_",null,{"$f":"(1000000-100000)/G2/2","v":467.2897196261682},{"$nulls":7},"gender","ocen","buka"]
["Учитель 1",null,2,null,"да",null,963,null,null,"5 класс",1,{"$nulls":3},"М","нет оценки","А"]
["Учитель 2",null,5,null,"нет",{"$nulls":4},"8 класс",2,{"$nulls":3},"Ж",5,"Б"]
["Учитель 3",{"$nulls":14},4,"В"]
["Учитель 4",null,"kval",{"$nulls":12},3,"Г"]
["Учитель 5",null,"Высшая",{"$nulls":12},2,"Д"]
["Учитель 6",null,"Первая",{"$nulls":13},"Е"]
["Учитель 7",null,"Аттестован(а) на соответствие должности",{"$nulls":13},"Ё"]
["Учитель 8",null,"Не астестован(а)",{"$nulls":13},"Ж"]
["Учитель 9",null,"Молодой специалист",{"$nulls":13},"З"]
["Учитель 10",{"$nulls":15},"И"]
["Учитель 11",{"$nulls":15},"Й"]
["Учитель 12",{"$nulls":15},"К"]
["Учитель 13",{"$nulls":15},"Л"]
["Учитель 14",{"$nulls":15},"М"]
["Учитель 15",{"$nulls":15},"Н"]
["Учитель 16",{"$nulls":15},"О"]
["Учитель 17",{"$nulls":15},"П"]
["Учитель 18",{"$nulls":15},"Р"]
["Учитель 19",{"$nulls":15},"С"]
["Учитель 20",{"$nulls":15},"Т"]
["Учитель 21",{"$nulls":15},"У"]
["Учитель 22",{"$nulls":15},"Ф"]
["Учитель 23",{"$nulls":15},"Х"]
["Учитель 24",{"$nulls":15},"Ц"]
["Учитель 25",{"$nulls":15},"Ч"]
[{"$nulls":16},"Ш"]
[{"$nulls":16},"Щ"]
[{"$nulls":16},"Э"]
[{"$nulls":16},"Ю"]
[{"$nulls":16},"Я"]
[{"$nulls":16},"Z"]
[{"$nulls":16},1]
[{"$nulls":16},2]
[{"$nulls":16},3]
[{"$nulls":16},4]
[{"$nulls":16},5]
[{"$nulls":16},6]
[{"$nulls":16},7]
[{"$nulls":16},8]
[{"$nulls":16},9]

{"sheet":"Лист1","index":4,"n_rows":0,"n_cols":0,"rows_kept":0}